[Event "Titled Tuesday Blitz January 17 Early 2023"]
[White "Rohith Krishna S"]
[Black "Batsiashvili, Nino"]
[WhiteFideId "46617051"]
[BlackFideId "13602993"]
[WhiteElo "2385"]
[BlackElo "2467"]
[Result "1-0"]
[Round "07"]
[TimeControl "180+2"]
[Date "2023.01.17"]
[WhiteClock "0:00:40"]
[BlackClock "0:00:06"]

1. Nf3 {[%clk 0:02:51]}  Nf6 {[%clk 0:02:59]} 2. g3 {[%clk 0:02:50]}  d5 {[%clk 0:02:59]} 3. Bg2 {[%clk 0:02:50]}  e6 {[%clk 0:02:59]} 4. O-O {[%clk 0:02:51]}  Be7 {[%clk 0:03:00]} 5. c4 {[%clk 0:02:51]}  O-O {[%clk 0:02:59]} 6. d4 {[%clk 0:02:50]}  c6 {[%clk 0:02:59]} 7. Qc2 {[%clk 0:02:48]}  b6 {[%clk 0:03:00]} 8. Rd1 {[%clk 0:02:47]}  Bb7 {[%clk 0:02:57]} 9. b3 {[%clk 0:02:42]}  Nbd7 {[%clk 0:02:51]} 10. Nc3 {[%clk 0:02:42]}  Ba6 {[%clk 0:02:49]} 11. Ne5 {[%clk 0:02:40]}  Nxe5 {[%clk 0:02:44]} 12. dxe5 {[%clk 0:02:40]}  Nd7 {[%clk 0:02:42]} 13. cxd5 {[%clk 0:02:34]}  cxd5 {[%clk 0:02:32]} 14. e4 {[%clk 0:02:35]}  Rc8 {[%clk 0:02:00]} 15. exd5 {[%clk 0:02:34]}  Bb4 {[%clk 0:01:55]} 16. Bb2 {[%clk 0:02:33]}  exd5 {[%clk 0:01:48]} 17. Rxd5 {[%clk 0:02:18]}  Qc7 {[%clk 0:01:37]} 18. Qd1 {[%clk 0:01:44]}  Bxc3 {[%clk 0:01:15]} 19. Bxc3 {[%clk 0:01:40]}  Qxc3 {[%clk 0:01:14]} 20. Rxd7 {[%clk 0:01:40]}  Qxe5 {[%clk 0:01:12]} 21. Rxa7 {[%clk 0:01:40]}  Be2 {[%clk 0:01:12]} 22. Qe1 {[%clk 0:01:40]}  Rc2 {[%clk 0:01:11]} 23. Rc1 {[%clk 0:01:37]}  Rxc1 {[%clk 0:00:52]} 24. Qxc1 {[%clk 0:01:38]}  h5 {[%clk 0:00:40]} 25. h4 {[%clk 0:01:26]}  Bg4 {[%clk 0:00:27]} 26. Qd2 {[%clk 0:01:19]}  Re8 {[%clk 0:00:16]} 27. Bd5 {[%clk 0:01:15]}  Be6 {[%clk 0:00:15]} 28. Bf3 {[%clk 0:01:14]}  Bg4 {[%clk 0:00:14]} 29. Qd5 {[%clk 0:00:54]}  Bxf3 {[%clk 0:00:13]} 30. Qxf7+ {[%clk 0:00:49]}  Kh8 {[%clk 0:00:12]} 31. Qxf3 {[%clk 0:00:50]}  b5 {[%clk 0:00:10]} 32. a4 {[%clk 0:00:44]}  bxa4 {[%clk 0:00:10]} 33. bxa4 {[%clk 0:00:44]}  Qe1+ {[%clk 0:00:10]} 34. Kg2 {[%clk 0:00:44]}  Qe5 {[%clk 0:00:10]} 35. Rb7 {[%clk 0:00:42]}  Kg8 {[%clk 0:00:09]} 36. Rb5 {[%clk 0:00:42]}  Qe4 {[%clk 0:00:09]} 37. Rxh5 {[%clk 0:00:39]}  Qxa4 {[%clk 0:00:06]} 38. Qd5+ {[%clk 0:00:38]}  Kf8 {[%clk 0:00:06]} 39. Rf5+ {[%clk 0:00:39]}  Ke7 {[%clk 0:00:06]} 40. Rf7# {[%clk 0:00:40]} 1-0


[Site "https://www.chess.com"]

[Event "Titled Tuesday Blitz January 17 Early 2023"]
[White "Becerra, Juan David"]
[Black "Aradhya, Garg"]
[WhiteFideId "4404998"]
[BlackFideId "25006746"]
[WhiteElo "2382"]
[BlackElo "2284"]
[Result "0-1"]
[Round "07"]
[TimeControl "180+2"]
[Date "2023.01.17"]
[WhiteClock "0:00:03"]
[BlackClock "0:00:08"]

1. d4 {[%clk 0:02:55]}  d5 {[%clk 0:02:59]} 2. c4 {[%clk 0:02:55]}  c6 {[%clk 0:02:59]} 3. c5 {[%clk 0:02:54]}  e5 {[%clk 0:02:57]} 4. e3 {[%clk 0:02:48]}  Nf6 {[%clk 0:02:55]} 5. Nc3 {[%clk 0:02:46]}  e4 {[%clk 0:02:46]} 6. f4 {[%clk 0:02:46]}  b6 {[%clk 0:02:45]} 7. Na4 {[%clk 0:02:17]}  bxc5 {[%clk 0:02:19]} 8. dxc5 {[%clk 0:02:18]}  Na6 {[%clk 0:02:10]} 9. Qd4 {[%clk 0:02:15]}  Rb8 {[%clk 0:02:08]} 10. Bd2 {[%clk 0:02:14]}  Be7 {[%clk 0:02:06]} 11. Qc3 {[%clk 0:01:39]}  O-O {[%clk 0:02:04]} 12. Ne2 {[%clk 0:01:39]}  Nd7 {[%clk 0:01:28]} 13. Nd4 {[%clk 0:01:39]}  Qc7 {[%clk 0:01:28]} 14. Qa5 {[%clk 0:01:23]}  Qxa5 {[%clk 0:00:35]} 15. Bxa5 {[%clk 0:01:24]}  Ndxc5 {[%clk 0:00:32]} 16. Nxc6 {[%clk 0:01:20]}  Rb7 {[%clk 0:00:28]} 17. Nxe7+ {[%clk 0:01:15]}  Rxe7 {[%clk 0:00:27]} 18. Nxc5 {[%clk 0:01:15]}  Nxc5 {[%clk 0:00:24]} 19. Bc3 {[%clk 0:01:06]}  Ba6 {[%clk 0:00:19]} 20. Bxa6 {[%clk 0:01:04]}  Nxa6 {[%clk 0:00:20]} 21. O-O-O {[%clk 0:01:05]}  Rd7 {[%clk 0:00:18]} 22. Kb1 {[%clk 0:01:01]}  Rc8 {[%clk 0:00:12]} 23. Bd4 {[%clk 0:01:01]}  Nb4 {[%clk 0:00:10]} 24. Rc1 {[%clk 0:01:00]}  Rb8 {[%clk 0:00:11]} 25. g4 {[%clk 0:00:47]}  Nd3 {[%clk 0:00:09]} 26. Rc2 {[%clk 0:00:47]}  Rdb7 {[%clk 0:00:09]} 27. h4 {[%clk 0:00:46]}  a5 {[%clk 0:00:08]} 28. h5 {[%clk 0:00:45]}  a4 {[%clk 0:00:07]} 29. h6 {[%clk 0:00:44]}  g6 {[%clk 0:00:07]} 30. f5 {[%clk 0:00:44]}  Kf8 {[%clk 0:00:07]} 31. fxg6 {[%clk 0:00:44]}  fxg6 {[%clk 0:00:08]} 32. Rf1+ {[%clk 0:00:40]}  Ke7 {[%clk 0:00:08]} 33. g5 {[%clk 0:00:37]}  a3 {[%clk 0:00:07]} 34. b3 {[%clk 0:00:35]}  Ke8 {[%clk 0:00:08]} 35. Bc5 {[%clk 0:00:34]}  Rf7 {[%clk 0:00:08]} 36. Rxf7 {[%clk 0:00:34]}  Kxf7 {[%clk 0:00:09]} 37. Bxa3 {[%clk 0:00:34]}  Ke6 {[%clk 0:00:09]} 38. Rc6+ {[%clk 0:00:31]}  Kf5 {[%clk 0:00:09]} 39. Be7 {[%clk 0:00:32]}  d4 {[%clk 0:00:10]} 40. exd4 {[%clk 0:00:19]}  e3 {[%clk 0:00:11]} 41. Rc2 {[%clk 0:00:17]}  Re8 {[%clk 0:00:09]} 42. Bf6 {[%clk 0:00:05]}  e2 {[%clk 0:00:08]} 43. Rxe2 {[%clk 0:00:05]}  Rxe2 {[%clk 0:00:08]} 44. d5 {[%clk 0:00:05]}  Nb4 {[%clk 0:00:08]} 45. d6 {[%clk 0:00:05]}  Ke6 {[%clk 0:00:08]} 46. a4 {[%clk 0:00:03]}  Kxd6 {[%clk 0:00:08]} 47. a5 {[%clk 0:00:03]}  Kc6 {[%clk 0:00:08]} 48. Kc1 {[%clk 0:00:03]}  Kb5 {[%clk 0:00:09]} 49. Kd1 {[%clk 0:00:03]}  Ra2 {[%clk 0:00:08]} 0-1


[Site "https://www.chess.com"]

[Event "Titled Tuesday Blitz January 17 Early 2023"]
[White "Al-Tarboush, Ward"]
[Black "Rozman, Levy"]
[WhiteFideId "7601450"]
[BlackFideId "2039877"]
[WhiteElo "2256"]
[BlackElo "2322"]
[Result "0-1"]
[Round "07"]
[TimeControl "180+2"]
[Date "2023.01.17"]
[WhiteClock "0:00:39"]
[BlackClock "0:00:04"]

1. e4 {[%clk 0:02:37]}  e6 {[%clk 0:02:59]} 2. d4 {[%clk 0:02:36]}  d5 {[%clk 0:03:00]} 3. exd5 {[%clk 0:02:37]}  exd5 {[%clk 0:03:01]} 4. Nf3 {[%clk 0:02:37]}  Bd6 {[%clk 0:03:01]} 5. Nc3 {[%clk 0:02:36]}  Ne7 {[%clk 0:03:00]} 6. Nb5 {[%clk 0:02:36]}  Bb4+ {[%clk 0:02:58]} 7. c3 {[%clk 0:02:36]}  Ba5 {[%clk 0:02:58]} 8. b4 {[%clk 0:02:37]}  Bb6 {[%clk 0:02:59]} 9. a4 {[%clk 0:02:37]}  a6 {[%clk 0:02:56]} 10. Na3 {[%clk 0:02:28]}  c6 {[%clk 0:02:54]} 11. Bd3 {[%clk 0:02:27]}  Bg4 {[%clk 0:02:50]} 12. O-O {[%clk 0:02:27]}  Qd6 {[%clk 0:02:30]} 13. Re1 {[%clk 0:02:25]}  Bc7 {[%clk 0:02:29]} 14. g3 {[%clk 0:02:23]}  Qf6 {[%clk 0:01:59]} 15. Bg5 {[%clk 0:02:22]}  Qxg5 {[%clk 0:01:58]} 16. Nxg5 {[%clk 0:02:22]}  Bxd1 {[%clk 0:01:59]} 17. Raxd1 {[%clk 0:02:21]}  h6 {[%clk 0:01:56]} 18. Nf3 {[%clk 0:02:17]}  Nd7 {[%clk 0:01:50]} 19. Re2 {[%clk 0:02:10]}  Kf8 {[%clk 0:01:44]} 20. Rde1 {[%clk 0:02:09]}  Bd6 {[%clk 0:01:39]} 21. Nc2 {[%clk 0:02:08]}  Nf6 {[%clk 0:01:17]} 22. Ne3 {[%clk 0:02:05]}  Re8 {[%clk 0:01:15]} 23. Nf5 {[%clk 0:02:03]}  Nxf5 {[%clk 0:01:11]} 24. Rxe8+ {[%clk 0:02:04]}  Nxe8 {[%clk 0:01:12]} 25. Bxf5 {[%clk 0:02:05]}  Bc7 {[%clk 0:01:03]} 26. Bc8 {[%clk 0:02:03]}  Nd6 {[%clk 0:01:02]} 27. Bd7 {[%clk 0:01:47]}  g5 {[%clk 0:00:53]} 28. h4 {[%clk 0:01:43]}  Bd8 {[%clk 0:00:50]} 29. Ne5 {[%clk 0:01:36]}  gxh4 {[%clk 0:00:46]} 30. g4 {[%clk 0:01:26]}  Bg5 {[%clk 0:00:44]} 31. Nd3 {[%clk 0:01:24]}  Bd2 {[%clk 0:00:40]} 32. Re2 {[%clk 0:01:19]}  Bxc3 {[%clk 0:00:41]} 33. b5 {[%clk 0:01:14]}  axb5 {[%clk 0:00:40]} 34. axb5 {[%clk 0:01:15]}  Nxb5 {[%clk 0:00:38]} 35. Nf4 {[%clk 0:01:13]}  Nd6 {[%clk 0:00:21]} 36. Nh5 {[%clk 0:01:09]}  Bxd4 {[%clk 0:00:19]} 37. Kg2 {[%clk 0:01:09]}  Rg8 {[%clk 0:00:13]} 38. f4 {[%clk 0:01:04]}  f5 {[%clk 0:00:13]} 39. Re6 {[%clk 0:01:00]}  Rxg4+ {[%clk 0:00:12]} 40. Kf3 {[%clk 0:01:00]}  Ne4 {[%clk 0:00:06]} 41. Rxh6 {[%clk 0:00:53]}  h3 {[%clk 0:00:04]} 42. Bxf5 {[%clk 0:00:40]}  h2 {[%clk 0:00:05]} 43. Nf6 {[%clk 0:00:40]}  Rg3+ {[%clk 0:00:04]} 44. Ke2 {[%clk 0:00:39]}  Nxf6 {[%clk 0:00:03]} 45. Rxh2 {[%clk 0:00:39]}  Re3+ {[%clk 0:00:04]} 46. Kd2 {[%clk 0:00:39]}  Ne4+ {[%clk 0:00:04]} 0-1


[Site "https://www.chess.com"]

[Event "Titled Tuesday Blitz January 17 Early 2023"]
[White "Gurvich, Vitaly"]
[Black "Mammadzada, Gunay"]
[WhiteFideId "24164852"]
[BlackFideId "13403729"]
[WhiteElo "2278"]
[BlackElo "2449"]
[Result "0-1"]
[Round "07"]
[TimeControl "180+2"]
[Date "2023.01.17"]
[WhiteClock "0:00:11"]
[BlackClock "0:00:17"]

1. d4 {[%clk 0:02:03]}  d5 {[%clk 0:02:39]} 2. c4 {[%clk 0:02:01]}  c6 {[%clk 0:02:40]} 3. cxd5 {[%clk 0:02:01]}  cxd5 {[%clk 0:02:39]} 4. Bg5 {[%clk 0:02:01]}  h6 {[%clk 0:02:39]} 5. Bh4 {[%clk 0:02:00]}  Qb6 {[%clk 0:02:38]} 6. Qd2 {[%clk 0:02:01]}  e6 {[%clk 0:02:38]} 7. Nc3 {[%clk 0:02:00]}  Ne7 {[%clk 0:02:35]} 8. f3 {[%clk 0:02:00]}  Nf5 {[%clk 0:02:33]} 9. Bf2 {[%clk 0:02:00]}  Nc6 {[%clk 0:02:34]} 10. Rd1 {[%clk 0:02:00]}  Bb4 {[%clk 0:02:32]} 11. e4 {[%clk 0:01:59]}  dxe4 {[%clk 0:02:22]} 12. fxe4 {[%clk 0:02:00]}  Nd6 {[%clk 0:02:22]} 13. d5 {[%clk 0:01:30]}  Qa5 {[%clk 0:02:16]} 14. dxc6 {[%clk 0:01:15]}  Nxe4 {[%clk 0:02:16]} 15. cxb7 {[%clk 0:01:11]}  Bxb7 {[%clk 0:01:44]} 16. Qd7+ {[%clk 0:01:10]}  Kf8 {[%clk 0:01:44]} 17. Qxb7 {[%clk 0:01:08]}  Bxc3+ {[%clk 0:01:45]} 18. Ke2 {[%clk 0:00:38]}  Nxf2 {[%clk 0:01:11]} 19. Qxa8+ {[%clk 0:00:37]}  Ke7 {[%clk 0:01:12]} 20. Qb7+ {[%clk 0:00:36]}  Kf6 {[%clk 0:01:12]} 21. Qf3+ {[%clk 0:00:33]}  Ke7 {[%clk 0:01:08]} 22. Qxc3 {[%clk 0:00:34]}  Qxc3 {[%clk 0:01:04]} 23. bxc3 {[%clk 0:00:34]}  Nxh1 {[%clk 0:01:04]} 24. g3 {[%clk 0:00:31]}  Rb8 {[%clk 0:01:01]} 25. Bg2 {[%clk 0:00:31]}  Rb2+ {[%clk 0:01:00]} 26. Rd2 {[%clk 0:00:32]}  Rb1 {[%clk 0:01:00]} 27. Nf3 {[%clk 0:00:25]}  g5 {[%clk 0:00:53]} 28. c4 {[%clk 0:00:24]}  f6 {[%clk 0:00:36]} 29. Rc2 {[%clk 0:00:19]}  e5 {[%clk 0:00:34]} 30. c5 {[%clk 0:00:19]}  Kd7 {[%clk 0:00:34]} 31. c6+ {[%clk 0:00:19]}  Kc7 {[%clk 0:00:35]} 32. Nd2 {[%clk 0:00:20]}  Rg1 {[%clk 0:00:30]} 33. Bd5 {[%clk 0:00:19]}  f5 {[%clk 0:00:25]} 34. Nc4 {[%clk 0:00:18]}  e4 {[%clk 0:00:26]} 35. Nd6 {[%clk 0:00:12]}  Kxd6 {[%clk 0:00:22]} 36. c7 {[%clk 0:00:09]}  Rg2+ {[%clk 0:00:22]} 37. Kd1 {[%clk 0:00:09]}  Rxc2 {[%clk 0:00:23]} 38. Kxc2 {[%clk 0:00:08]}  Kxc7 {[%clk 0:00:23]} 39. Be6 {[%clk 0:00:08]}  f4 {[%clk 0:00:21]} 40. gxf4 {[%clk 0:00:08]}  gxf4 {[%clk 0:00:22]} 41. Kd2 {[%clk 0:00:09]}  Kd6 {[%clk 0:00:21]} 42. Bg8 {[%clk 0:00:09]}  Nf2 {[%clk 0:00:20]} 43. Ke2 {[%clk 0:00:10]}  e3 {[%clk 0:00:19]} 44. Bh7 {[%clk 0:00:10]}  Ke5 {[%clk 0:00:20]} 45. h4 {[%clk 0:00:09]}  Ng4 {[%clk 0:00:19]} 46. Bd3 {[%clk 0:00:09]}  Nf6 {[%clk 0:00:20]} 47. Kf3 {[%clk 0:00:09]}  Nd5 {[%clk 0:00:20]} 48. Be2 {[%clk 0:00:09]}  Nc3 {[%clk 0:00:20]} 49. Bc4 {[%clk 0:00:10]}  Kd4 {[%clk 0:00:19]} 50. Bg8 {[%clk 0:00:10]}  e2 {[%clk 0:00:19]} 51. Kf2 {[%clk 0:00:10]}  Kd3 {[%clk 0:00:18]} 52. Ke1 {[%clk 0:00:11]}  Ke3 {[%clk 0:00:17]} 0-1


[Site "https://www.chess.com"]

[Event "Titled Tuesday Blitz January 17 Early 2023"]
[White "Belozerov, Andrei"]
[Black "Musovic, Armin"]
[WhiteFideId "4120213"]
[BlackFideId "939935"]
[WhiteElo "2461"]
[BlackElo "2261"]
[Result "1-0"]
[Round "07"]
[TimeControl "180+2"]
[Date "2023.01.17"]
[WhiteClock "0:01:35"]
[BlackClock "0:01:45"]

1. d4 {[%clk 0:03:00]}  d5 {[%clk 0:03:00]} 2. c4 {[%clk 0:02:59]}  c5 {[%clk 0:03:01]} 3. cxd5 {[%clk 0:02:59]}  Qxd5 {[%clk 0:03:02]} 4. Nf3 {[%clk 0:02:58]}  cxd4 {[%clk 0:03:02]} 5. Nc3 {[%clk 0:02:57]}  Qa5 {[%clk 0:03:02]} 6. Nxd4 {[%clk 0:02:57]}  Nf6 {[%clk 0:03:02]} 7. g3 {[%clk 0:02:54]}  e5 {[%clk 0:03:03]} 8. Nb3 {[%clk 0:02:53]}  Qc7 {[%clk 0:03:03]} 9. Bg2 {[%clk 0:02:53]}  Bb4 {[%clk 0:03:04]} 10. O-O {[%clk 0:02:52]}  Bxc3 {[%clk 0:03:05]} 11. bxc3 {[%clk 0:02:51]}  O-O {[%clk 0:03:05]} 12. Bg5 {[%clk 0:02:46]}  Nbd7 {[%clk 0:03:05]} 13. Qd3 {[%clk 0:02:34]}  h6 {[%clk 0:03:05]} 14. Be3 {[%clk 0:02:34]}  Rd8 {[%clk 0:03:06]} 15. Rfd1 {[%clk 0:02:32]}  e4 {[%clk 0:02:47]} 16. Qd6 {[%clk 0:02:30]}  Qxc3 {[%clk 0:02:43]} 17. Rac1 {[%clk 0:02:24]}  Qb2 {[%clk 0:02:30]} 18. Rd2 {[%clk 0:02:22]}  Qxc1+ {[%clk 0:02:28]} 19. Nxc1 {[%clk 0:02:20]}  Re8 {[%clk 0:02:29]} 20. Nb3 {[%clk 0:02:16]}  Nf8 {[%clk 0:02:22]} 21. Nd4 {[%clk 0:02:07]}  a6 {[%clk 0:02:21]} 22. h3 {[%clk 0:02:06]}  Ng6 {[%clk 0:02:16]} 23. Bxh6 {[%clk 0:01:59]}  Re5 {[%clk 0:01:59]} 24. Bf4 {[%clk 0:01:54]}  Nxf4 {[%clk 0:01:58]} 25. Qxe5 {[%clk 0:01:53]}  Nxh3+ {[%clk 0:01:58]} 26. Bxh3 {[%clk 0:01:50]}  Bxh3 {[%clk 0:01:59]} 27. Nf5 {[%clk 0:01:41]}  Re8 {[%clk 0:01:55]} 28. Qf4 {[%clk 0:01:38]}  Re6 {[%clk 0:01:45]} 29. Rd8+ {[%clk 0:01:36]}  Kh7 {[%clk 0:01:45]} 30. Qh4+ {[%clk 0:01:35]} 1-0


[Site "https://www.chess.com"]

[Event "Titled Tuesday Blitz January 17 Early 2023"]
[White "Shuvalova, Polina"]
[Black "Santos Flores, Alberto"]
[WhiteFideId "24171760"]
[BlackFideId "3601234"]
[WhiteElo "2484"]
[BlackElo "2164"]
[Result "1-0"]
[Round "07"]
[TimeControl "180+2"]
[Date "2023.01.17"]
[WhiteClock "0:00:12"]
[BlackClock "0:00:08"]

1. d4 {[%clk 0:03:00]}  d5 {[%clk 0:02:56]} 2. Nf3 {[%clk 0:03:00]}  Nf6 {[%clk 0:02:56]} 3. Bf4 {[%clk 0:03:00]}  c5 {[%clk 0:02:55]} 4. e3 {[%clk 0:02:59]}  Nc6 {[%clk 0:02:55]} 5. Nbd2 {[%clk 0:02:59]}  cxd4 {[%clk 0:02:51]} 6. exd4 {[%clk 0:02:59]}  Bf5 {[%clk 0:02:50]} 7. Bb5 {[%clk 0:02:56]}  Rc8 {[%clk 0:02:40]} 8. O-O {[%clk 0:02:54]}  a6 {[%clk 0:02:36]} 9. Ba4 {[%clk 0:02:46]}  b5 {[%clk 0:02:34]} 10. Bb3 {[%clk 0:02:46]}  e6 {[%clk 0:02:33]} 11. c3 {[%clk 0:02:45]}  Be7 {[%clk 0:02:28]} 12. Qe2 {[%clk 0:02:12]}  Qb6 {[%clk 0:02:11]} 13. Ne5 {[%clk 0:01:45]}  Nxe5 {[%clk 0:02:07]} 14. Bxe5 {[%clk 0:01:41]}  O-O {[%clk 0:02:04]} 15. a3 {[%clk 0:01:22]}  a5 {[%clk 0:02:02]} 16. Rfc1 {[%clk 0:01:13]}  b4 {[%clk 0:01:52]} 17. cxb4 {[%clk 0:01:03]}  axb4 {[%clk 0:01:53]} 18. a4 {[%clk 0:01:04]}  Nd7 {[%clk 0:01:33]} 19. a5 {[%clk 0:01:01]}  Qa7 {[%clk 0:01:33]} 20. a6 {[%clk 0:00:55]}  Nxe5 {[%clk 0:01:32]} 21. dxe5 {[%clk 0:00:52]}  Bc5 {[%clk 0:00:59]} 22. Nf1 {[%clk 0:00:48]}  Rc6 {[%clk 0:00:45]} 23. Bc2 {[%clk 0:00:41]}  Bxc2 {[%clk 0:00:38]} 24. Rxc2 {[%clk 0:00:42]}  Rfc8 {[%clk 0:00:33]} 25. Rac1 {[%clk 0:00:40]}  Qc7 {[%clk 0:00:24]} 26. Kh1 {[%clk 0:00:32]}  Qb6 {[%clk 0:00:22]} 27. h4 {[%clk 0:00:26]}  Bd4 {[%clk 0:00:15]} 28. a7 {[%clk 0:00:15]}  Qb7 {[%clk 0:00:08]} 29. Rxc6 {[%clk 0:00:12]}  Rxc6 {[%clk 0:00:08]} 30. Rxc6 {[%clk 0:00:13]}  Qxc6 {[%clk 0:00:08]} 31. Qb5 {[%clk 0:00:12]} 1-0


[Site "https://www.chess.com"]

[Event "Titled Tuesday Blitz January 17 Early 2023"]
[White "Aloma Vidal, Robert"]
[Black "Pasaribu, Ivan Maxmillian Putra"]
[WhiteFideId "2260409"]
[BlackFideId "7104219"]
[WhiteElo "2442"]
[BlackElo "2229"]
[Result "1/2-1/2"]
[Round "07"]
[TimeControl "180+2"]
[Date "2023.01.17"]
[WhiteClock "0:00:17"]
[BlackClock "0:00:50"]

1. e4 {[%clk 0:03:00]}  c5 {[%clk 0:02:58]} 2. c3 {[%clk 0:03:01]}  Nf6 {[%clk 0:02:58]} 3. e5 {[%clk 0:03:01]}  Nd5 {[%clk 0:02:58]} 4. Nf3 {[%clk 0:03:02]}  c4 {[%clk 0:02:59]} 5. Bxc4 {[%clk 0:03:02]}  Nb6 {[%clk 0:02:59]} 6. Bb3 {[%clk 0:03:02]}  Nc6 {[%clk 0:02:58]} 7. d4 {[%clk 0:03:01]}  d5 {[%clk 0:02:57]} 8. exd6 {[%clk 0:03:01]}  Qxd6 {[%clk 0:02:56]} 9. c4 {[%clk 0:02:49]}  Qe6+ {[%clk 0:02:42]} 10. Be3 {[%clk 0:02:14]}  Nxc4 {[%clk 0:02:41]} 11. d5 {[%clk 0:02:13]}  Nxe3 {[%clk 0:02:41]} 12. dxe6 {[%clk 0:02:13]}  Nxd1 {[%clk 0:02:41]} 13. exf7+ {[%clk 0:02:12]}  Kd8 {[%clk 0:02:41]} 14. Kxd1 {[%clk 0:02:11]}  e6 {[%clk 0:02:42]} 15. Nc3 {[%clk 0:02:04]}  Bb4 {[%clk 0:02:41]} 16. Ne4 {[%clk 0:02:01]}  Ke7 {[%clk 0:02:41]} 17. a3 {[%clk 0:01:56]}  Ba5 {[%clk 0:02:41]} 18. Ke2 {[%clk 0:01:42]}  Kxf7 {[%clk 0:02:38]} 19. Rad1 {[%clk 0:01:38]}  Ke7 {[%clk 0:02:35]} 20. h3 {[%clk 0:01:16]}  Rd8 {[%clk 0:02:29]} 21. Rxd8 {[%clk 0:00:51]}  Bxd8 {[%clk 0:02:28]} 22. Re1 {[%clk 0:00:47]}  Ba5 {[%clk 0:02:27]} 23. Rd1 {[%clk 0:00:44]}  Bb6 {[%clk 0:02:25]} 24. Nfg5 {[%clk 0:00:38]}  h6 {[%clk 0:02:25]} 25. Nf3 {[%clk 0:00:38]}  Bd7 {[%clk 0:02:23]} 26. Nd6 {[%clk 0:00:36]}  Rb8 {[%clk 0:02:08]} 27. Ba4 {[%clk 0:00:33]}  Nd4+ {[%clk 0:02:02]} 28. Nxd4 {[%clk 0:00:33]}  Bxa4 {[%clk 0:02:02]} 29. b3 {[%clk 0:00:32]}  Bxd4 {[%clk 0:01:53]} 30. Rxd4 {[%clk 0:00:30]}  Bxb3 {[%clk 0:01:52]} 31. Ne4 {[%clk 0:00:25]}  Bd5 {[%clk 0:01:51]} 32. Nc3 {[%clk 0:00:24]}  Bc6 {[%clk 0:01:49]} 33. f3 {[%clk 0:00:23]}  Rd8 {[%clk 0:01:47]} 34. Rg4 {[%clk 0:00:23]}  Kf6 {[%clk 0:01:40]} 35. h4 {[%clk 0:00:22]}  h5 {[%clk 0:01:23]} 36. Rg5 {[%clk 0:00:22]}  g6 {[%clk 0:01:20]} 37. Rc5 {[%clk 0:00:21]}  Rd4 {[%clk 0:01:19]} 38. g3 {[%clk 0:00:20]}  e5 {[%clk 0:01:16]} 39. Ke3 {[%clk 0:00:20]}  Ke6 {[%clk 0:01:16]} 40. Ra5 {[%clk 0:00:18]}  a6 {[%clk 0:01:16]} 41. f4 {[%clk 0:00:17]}  Rc4 {[%clk 0:01:07]} 42. Rxe5+ {[%clk 0:00:17]}  Kf6 {[%clk 0:01:07]} 43. Ne2 {[%clk 0:00:17]}  Ra4 {[%clk 0:01:06]} 44. Nd4 {[%clk 0:00:17]}  Rxa3+ {[%clk 0:01:06]} 45. Kf2 {[%clk 0:00:17]}  Bd7 {[%clk 0:01:02]} 46. Rd5 {[%clk 0:00:16]}  Bg4 {[%clk 0:01:02]} 47. Rd6+ {[%clk 0:00:16]}  Kf7 {[%clk 0:01:02]} 48. Rb6 {[%clk 0:00:15]}  Ra2+ {[%clk 0:01:00]} 49. Ke3 {[%clk 0:00:15]}  Ra3+ {[%clk 0:01:00]} 50. Ke4 {[%clk 0:00:15]}  Rxg3 {[%clk 0:00:58]} 51. Rxb7+ {[%clk 0:00:16]}  Kf6 {[%clk 0:00:58]} 52. Rb6+ {[%clk 0:00:16]}  Kg7 {[%clk 0:00:58]} 53. Rxa6 {[%clk 0:00:16]}  Rh3 {[%clk 0:00:51]} 54. f5 {[%clk 0:00:16]}  gxf5+ {[%clk 0:00:48]} 55. Nxf5+ {[%clk 0:00:17]}  Bxf5+ {[%clk 0:00:49]} 56. Kxf5 {[%clk 0:00:17]}  Rxh4 {[%clk 0:00:50]} 57. Kg5 {[%clk 0:00:17]} 1/2-1/2


[Site "https://www.chess.com"]